fUST/lending_fUST_20250203
["ID","MTS","AMOUNT","RATE_DAILY","PERIOD"]
[351421154,1738564251048,-500.0,0.00016712,2]
[351421155,1738564251058,-500.0,0.00016712,2]
[351421156,1738564251068,-500.0,0.00016712,2]
[351421157,1738564251077,-500.0,0.00016712,2]
[351421158,1738564251087,-500.0,0.00016712,2]
[351421159,1738564251096,-500.0,0.00016712,2]
[351421160,1738564251106,-500.0,0.00016712,2]
[351421161,1738564251115,-500.0,0.00016712,2]
[351421162,1738564251125,-500.0,0.00016712,2]
[351421163,1738564251138,-500.0,0.00016712,2]
[351421164,1738564251147,-500.0,0.00016712,2]
[351421165,1738564251156,-500.0,0.00016712,2]
[351421166,1738564251166,-662.49,0.00016712,2]
[351421167,1738564251176,-451.37214186,0.00016712,2]
[351421168,1738564251185,-500.0,0.00016712,2]
[351421169,1738564251195,-500.0,0.00016712,2]
[351421170,1738564251204,-500.0,0.00016712,2]
[351421171,1738564251213,-500.0,0.00016712,2]
[351421172,1738564251223,-500.0,0.00016712,2]
[351421173,1738564251233,-634.77,0.00016712,2]
[351421174,1738564251243,-500.0,0.00016712,2]
[351421175,1738564251252,-500.0,0.00016712,2]
[351421176,1738564251262,-500.0,0.00016712,2]
[351421177,1738564251271,-689.94,0.00016712,2]
[351421178,1738564251280,-986.36,0.00016712,2]
[351421179,1738564251289,-695.9,0.00016712,2]
[351421180,1738564251298,-500.0,0.00016712,2]
[351421181,1738564251308,-500.0,0.00016712,2]
[351421182,1738564251317,-500.0,0.00016712,2]
[351421183,1738564251326,-500.0,0.00016712,2]
[351421184,1738564251336,-500.0,0.00016712,2]
[351421185,1738564251345,-511.14,0.00016712,2]
[351421186,1738564251355,-500.0,0.00016712,2]
[351421187,1738564251364,-1084.65,0.00016712,2]
[351421188,1738564251374,-500.0,0.00016712,2]
[351421189,1738564251389,-715.32,0.00016712,2]
[351421190,1738564251399,-500.0,0.00016712,2]
[351421191,1738564251409,-500.0,0.00016712,2]
[351421192,1738564251418,-500.0,0.00016712,2]
[351421193,1738564251428,-500.0,0.00016712,2]
[351421194,1738564251438,-500.0,0.00016712,2]
[351421195,1738564251447,-500.0,0.00016712,2]
[351421196,1738564251457,-345.71287339,0.00016712,2]
[351421197,1738564251466,-500.0,0.00016712,2]
[351421198,1738564251475,-500.0,0.00016712,2]
[351421199,1738564251485,-500.0,0.00016712,2]
[351421200,1738564251494,-500.0,0.00016712,2]
[351421201,1738564251504,-500.0,0.00016712,2]
[351421202,1738564251513,-500.0,0.00016712,2]
[351421203,1738564251523,-500.0,0.00016712,2]
[351421204,1738564251532,-500.0,0.00016712,2]
[351421205,1738564251542,-598.39,0.00016712,2]
[351421206,1738564251552,-500.0,0.00016712,2]
[351421207,1738564251562,-500.0,0.00016712,2]
[351421208,1738564251572,-500.0,0.00016712,2]
[351421209,1738564251582,-1224.59,0.00016712,2]
[351421210,1738564251591,-500.0,0.00016712,2]
[351421211,1738564251601,-500.0,0.00016712,2]
[351421212,1738564251611,-500.0,0.00016712,2]
[351421213,1738564251620,-500.0,0.00016712,2]
[351421214,1738564251632,-500.0,0.00016712,2]
[351421215,1738564251641,-500.0,0.00016712,2]
[351421216,1738564251651,-500.0,0.00016712,2]
[351421217,1738564251662,-500.0,0.00016712,2]
[351421218,1738564251671,-1020.39,0.00016712,2]
[351421219,1738564251684,-500.0,0.00016712,2]
[351421220,1738564251694,-500.0,0.00016712,2]
[351421221,1738564251703,-500.0,0.00016712,2]
[351421222,1738564251712,-545.81100596,0.00016712,5]
[351421223,1738564251722,-641.92,0.00016712,2]
[351421224,1738564251736,-500.0,0.00016712,2]
[351421225,1738564251747,-845.02,0.00016712,2]
[351421226,1738564251757,-500.0,0.00016712,2]
[351421227,1738564251768,-625.2,0.00016712,2]
[351421228,1738564251779,-500.0,0.00016712,2]
[351421229,1738564251788,-604.83,0.00016712,2]
[351421230,1738564251798,-500.0,0.00016712,2]
[351421231,1738564251808,-500.0,0.00016712,2]
[351421232,1738564251818,-500.0,0.00016712,2]
[351421233,1738564251827,-1016.58,0.00016712,2]
[351421234,1738564251837,-500.0,0.00016712,2]
[351421235,1738564251846,-1883.78,0.00016712,2]
[351421236,1738564251857,-500.0,0.00016712,2]
[351421237,1738564251866,-500.0,0.00016712,2]
[351421238,1738564251876,-500.0,0.00016712,2]
[351421239,1738564251889,-500.0,0.00016712,2]
[351421240,1738564251898,-500.0,0.00016712,2]
[351421241,1738564251907,-500.0,0.00016712,2]
[351421242,1738564251917,-500.0,0.00016712,2]
[351421243,1738564251927,-711.43,0.00016712,2]
[351421244,1738564251936,-500.0,0.00016712,2]
[351421245,1738564251946,-622.13,0.00016712,2]
[351421246,1738564251955,-509.56,0.00016712,2]
[351421247,1738564251965,-500.0,0.00016712,2]
[351421248,1738564251974,-500.0,0.00016712,2]
[351421249,1738564251983,-500.0,0.00016712,2]
[351421250,1738564251993,-500.0,0.00016712,2]
[351421251,1738564252002,-500.0,0.00016712,2]
[351421252,1738564252011,-10219.15,0.00016712,2]
[351421253,1738564252020,-500.0,0.00016712,2]
[351421254,1738564252030,-500.0,0.00016712,2]
[351421255,1738564252039,-500.0,0.00016712,2]
[351421256,1738564252048,-595.04,0.00016712,2]
[351421257,1738564252058,-1511.77,0.00016712,2]
[351421258,1738564252067,-500.0,0.00016712,2]
[351421259,1738564252076,-2561.26,0.00016712,2]
[351421260,1738564252086,-886.24,0.00016712,2]
[351421261,1738564252095,-633.81,0.00016712,2]
[351421262,1738564252104,-500.0,0.00016712,2]
[351421263,1738564252113,-500.0,0.00016712,2]
[351421264,1738564252123,-919.96,0.00016712,2]
[351421265,1738564252135,-812.25,0.00016712,2]
[351421266,1738564252144,-516.87651909,0.00016712,2]
[351421267,1738564252153,-500.0,0.00016712,2]
[351421268,1738564252162,-500.0,0.00016712,2]
[351421269,1738564252172,-500.0,0.00016712,2]
[351421270,1738564252181,-2342.46,0.00016712,2]
[351421271,1738564252190,-663.71,0.00016712,2]
[351421272,1738564252203,-500.0,0.00016712,2]
[351421273,1738564252212,-1005.05697971,0.00016712,2]
[351421274,1738564252222,-4081.6,0.00016712,2]
[351421275,1738564252231,-252.06002657,0.00016712,2]
[351421276,1738564252240,-500.0,0.00016712,2]
[351421277,1738564252250,-500.0,0.00016712,2]
[351421278,1738564252259,-500.0,0.00016712,2]
[351421279,1738564252268,-575.72,0.00016712,2]
[351421280,1738564252277,-2783.82,0.00016712,2]
[351421281,1738564252287,-500.0,0.00016712,2]
[351421282,1738564252296,-500.0,0.00016712,2]
[351421283,1738564252306,-500.0,0.00016712,2]
[351421284,1738564252315,-500.0,0.00016712,2]
[351421285,1738564252324,-500.0,0.00016712,2]
[351421286,1738564252334,-500.0,0.00016712,2]
[351421287,1738564252343,-296.79410167,0.00016712,2]
[351421288,1738564252352,-1087.55,0.00016712,2]
[351421289,1738564252467,-66694.44,0.00016712,2]
[351421290,1738564252477,-500.0,0.00016712,2]
[351421291,1738564252487,-500.0,0.00016712,2]
[351421292,1738564252497,-500.0,0.00016712,2]
[351421293,1738564252507,-3424.97,0.00016712,2]
[351421294,1738564252517,-625.0,0.00016712,2]
[351421295,1738564252526,-500.0,0.00016712,2]
[351421296,1738564252536,-500.0,0.00016712,2]
[351421297,1738564252546,-1460.69,0.00016712,2]
[351421298,1738564252556,-500.0,0.00016712,2]
[351421299,1738564252566,-546.87,0.00016712,2]
[351421300,1738564252576,-500.0,0.00016712,2]
[351421301,1738564252585,-500.0,0.00016712,2]
[351421302,1738564252595,-500.0,0.00016712,2]
[351421303,1738564252605,-1570.01,0.00016712,2]
[351421304,1738564252614,-797.04,0.00016712,2]
[351421305,1738564252624,-500.0,0.00016712,2]
[351421306,1738564252637,-500.0,0.00016712,2]
[351421307,1738564252647,-500.0,0.00016712,2]
[351421308,1738564252658,-3354.96,0.00016712,2]
[351421309,1738564252668,-500.0,0.00016712,2]
[351421310,1738564252680,-500.0,0.00016712,2]
[351421311,1738564252690,-1313.25,0.00016712,2]
[351421312,1738564252700,-500.0,0.00016712,2]
[351421313,1738564252709,-500.0,0.00016712,2]
[351421314,1738564252719,-500.0,0.00016712,2]
[351421315,1738564252728,-1300.48,0.00016712,2]
[351421316,1738564252738,-500.0,0.00016712,2]
[351421317,1738564252748,-565.2,0.00016712,2]
[351421318,1738564252758,-500.0,0.00016712,2]
[351421319,1738564252768,-577.12,0.00016712,2]
[351421320,1738564252777,-500.0,0.00016712,2]
[351421321,1738564252787,-500.0,0.00016712,2]
[351421322,1738564252797,-1538.45,0.00016712,2]
[351421323,1738564252807,-500.0,0.00016712,2]
[351421324,1738564252816,-2749.25,0.00016712,2]
[351421325,1738564252826,-563.18,0.00016712,2]
[351421326,1738564252836,-500.0,0.00016712,2]
[351421327,1738564252847,-500.0,0.00016712,2]
[351421328,1738564252857,-741.3,0.00016712,2]
[351421329,1738564252867,-6082.07,0.00016712,2]
[351421330,1738564252877,-781.25,0.00016712,2]
[351421331,1738564252890,-1000.0,0.00016712,7]
[351421332,1738564252900,-500.0,0.00016712,2]
[351421333,1738564252910,-500.0,0.00016712,2]
[351421334,1738564252920,-1099.59,0.00016712,2]
[351421335,1738564252931,-500.0,0.00016712,2]
[351421336,1738564252941,-500.0,0.00016712,2]
[351421337,1738564252951,-1090.69,0.00016712,2]
[351421338,1738564252961,-2301.16,0.00016712,2]
[351421339,1738564252971,-500.0,0.00016712,2]
[351421340,1738564252980,-830.03,0.00016712,2]
[351421341,1738564252990,-500.0,0.00016712,2]
[351421342,1738564252999,-500.0,0.00016712,2]
[351421343,1738564253009,-500.0,0.00016712,2]
[351421344,1738564253018,-500.0,0.00016712,2]
[351421345,1738564253028,-1221.72,0.00016712,2]
[351421346,1738564253038,-515.62,0.00016712,2]
[351421347,1738564253048,-500.0,0.00016712,2]
[351421348,1738564253058,-2768.41,0.00016712,2]
[351421349,1738564253068,-500.0,0.00016712,2]
[351421350,1738564253077,-500.0,0.00016712,2]
[351421351,1738564253086,-628.82,0.00016712,2]
[351421352,1738564253096,-500.0,0.00016712,2]
[351421353,1738564253106,-500.0,0.00016712,2]
[351421354,1738564253116,-3130.13,0.00016712,2]
[351421355,1738564253125,-1433.14991827,0.00016749,2]
[351421356,1738564253138,-277.350142,0.000168,2]
[351421357,1738564253147,-277.350142,0.000168,2]
[351421358,1738564253159,-151.0,0.000168,2]
[351421359,1738564253169,-151.0,0.000168,2]
[351421360,1738564253179,-151.0,0.000168,2]
[351421361,1738564253189,-6231.37845344,0.000168,2]
[351421362,1738564253200,-277.350142,0.00016849,2]
[351421363,1738564253210,-277.350142,0.00016849,2]
[351421364,1738564253219,-277.350142,0.00016849,2]
[351421365,1738564253229,-277.350142,0.00016849,2]
[351421366,1738564253239,-151.0,0.00016849,2]
[351421367,1738564253248,-151.0,0.00016849,2]
[351421368,1738564253258,-500.0,0.00016849,2]
[351421369,1738564253267,-500.0,0.00016849,2]
[351421370,1738564253277,-500.0,0.00016849,2]
[351421371,1738564253287,-500.0,0.00016849,2]
[351421372,1738564253296,-538.69,0.00016849,2]
[351421373,1738564253307,-500.0,0.00016849,2]
[351421374,1738564253316,-500.0,0.00016849,2]
[351421375,1738564253325,-500.0,0.00016849,2]
[351421376,1738564253335,-500.0,0.00016849,2]
[351421377,1738564253345,-500.0,0.00016849,2]
[351421378,1738564253355,-155.33687625,0.00016849,2]
[351421379,1738564253365,-500.0,0.00016849,2]
[351421380,1738564253374,-500.0,0.00016849,2]
[351421381,1738564253388,-668.4,0.00016849,2]
[351421382,1738564253398,-557.81708197,0.00016849,2]
[351421383,1738564253407,-500.0,0.00016849,2]
[351421384,1738564253416,-500.0,0.00016849,2]
[351421385,1738564253425,-500.0,0.00016849,2]
[351421386,1738564253435,-500.0,0.00016849,2]
[351421387,1738564253445,-514.93939741,0.00016849,2]
[351421388,1738564253454,-500.0,0.00016849,2]
[351421389,1738564253464,-500.0,0.00016849,2]
[351421390,1738564253473,-242.28995021,0.00016849,2]
[351421391,1738564253482,-500.0,0.00016849,2]
[351421392,1738564253492,-500.0,0.00016849,2]
[351421393,1738564253502,-500.0,0.00016849,2]
[351421394,1738564253511,-500.0,0.00016849,2]
[351421395,1738564253521,-500.0,0.00016849,2]
[351421396,1738564253531,-584.51,0.00016849,2]
[351421397,1738564253540,-500.0,0.00016849,2]
[351421398,1738564253550,-500.0,0.00016849,2]
[351421399,1738564253559,-610.32,0.00016849,2]
[351421400,1738564253569,-500.0,0.00016849,2]
[351421401,1738564253578,-500.0,0.00016849,2]
[351421402,1738564253588,-500.0,0.00016849,2]
[351421403,1738564253598,-614.32,0.00016849,2]
[351421404,1738564253607,-500.0,0.00016849,2]
[351421405,1738564253617,-500.0,0.00016849,2]
[351421406,1738564253626,-500.0,0.00016849,2]
[351421407,1738564253639,-500.0,0.00016849,2]
[351421408,1738564253649,-500.0,0.00016849,2]
[351421409,1738564253662,-500.0,0.00016849,2]
[351421410,1738564253673,-859.15,0.00016849,2]
[351421411,1738564253683,-500.0,0.00016849,2]
[351421412,1738564253693,-500.0,0.00016849,2]
[351421413,1738564253704,-500.0,0.00016849,2]
[351421414,1738564253714,-500.0,0.00016849,2]
[351421415,1738564253724,-500.0,0.00016849,2]
[351421416,1738564253734,-500.0,0.00016849,2]
[351421417,1738564253745,-500.0,0.00016849,2]
[351421418,1738564253754,-206.88969229,0.00016849,2]
[351421419,1738564253766,-500.0,0.00016849,2]
[351421420,1738564253776,-432.47261537,0.00016849,2]
[351421421,1738564253786,-500.0,0.00016849,2]
[351421422,1738564253795,-500.0,0.00016849,2]
[351421423,1738564253804,-500.0,0.00016849,2]
[351421424,1738564253814,-500.0,0.00016849,2]
[351421425,1738564253824,-662.49,0.00016849,2]
[351421426,1738564253833,-500.0,0.00016849,2]
[351421427,1738564253843,-302.89789683,0.00016849,2]
[351421428,1738564253853,-500.0,0.00016849,2]
[351421429,1738564253863,-500.0,0.00016849,2]
[351421430,1738564253872,-500.0,0.00016849,2]
[351421431,1738564253883,-634.77,0.00016849,2]
[351421432,1738564253892,-500.0,0.00016849,2]
[351421433,1738564253901,-500.0,0.00016849,2]
[351421434,1738564253911,-500.0,0.00016849,2]
[351421435,1738564253920,-689.94,0.00016849,2]
[351421436,1738564253929,-986.36,0.00016849,2]
[351421437,1738564253939,-695.9,0.00016849,2]
[351421438,1738564253949,-500.0,0.00016849,2]
[351421439,1738564253958,-500.0,0.00016849,2]
[351421440,1738564253969,-500.0,0.00016849,2]
[351421441,1738564253978,-500.0,0.00016849,2]
[351421442,1738564253987,-500.0,0.00016849,2]
[351421443,1738564253996,-511.14,0.00016849,2]
[351421444,1738564254015,-500.0,0.00016849,2]
[351421445,1738564254027,-1084.65,0.00016849,2]
[351421446,1738564254036,-500.0,0.00016849,2]
[351421447,1738564254046,-715.32,0.00016849,2]
[351421448,1738564254056,-500.0,0.00016849,2]
[351421449,1738564254066,-500.0,0.00016849,2]
[351421450,1738564254077,-500.0,0.00016849,2]
[351421451,1738564254087,-500.0,0.00016849,2]
[351421452,1738564254098,-500.0,0.00016849,2]
[351421453,1738564254108,-500.0,0.00016849,2]
[351421454,1738564254118,-500.0,0.00016849,2]
[351421455,1738564254128,-500.0,0.00016849,2]
[351421456,1738564254139,-500.0,0.00016849,2]
[351421457,1738564254149,-500.0,0.00016849,2]
[351421458,1738564254159,-500.0,0.00016849,2]
[351421459,1738564254169,-520.60079694,0.00016849,2]
[351421460,1738564254180,-500.0,0.00016849,2]
[351421461,1738564254190,-500.0,0.00016849,2]
[351421462,1738564254200,-598.39,0.00016849,2]
[351421463,1738564254210,-500.0,0.00016849,2]
[351421464,1738564254220,-500.0,0.00016849,2]
[351421465,1738564254230,-500.0,0.00016849,2]
[351421466,1738564254240,-1224.59,0.00016849,2]
[351421467,1738564254251,-500.0,0.00016849,2]
[351421468,1738564254260,-500.0,0.00016849,2]
[351421469,1738564254271,-500.0,0.00016849,2]
[351421470,1738564254281,-500.0,0.00016849,2]
[351421471,1738564254291,-500.0,0.00016849,2]
[351421472,1738564254301,-500.0,0.00016849,2]
[351421473,1738564254311,-500.0,0.00016849,2]
[351421474,1738564254321,-500.0,0.00016849,2]
[351421475,1738564254331,-1020.39,0.00016849,2]
[351421476,1738564254341,-500.0,0.00016849,2]
[351421477,1738564254351,-500.0,0.00016849,2]
[351421478,1738564254361,-500.0,0.00016849,2]
[351421479,1738564254375,-641.92,0.00016849,2]
[351421480,1738564254387,-500.0,0.00016849,2]
[351421481,1738564254404,-845.02,0.00016849,2]
[351421482,1738564254413,-480.89749494,0.00016849,2]
[351421483,1738564254422,-625.2,0.00016849,2]
[351421484,1738564254431,-500.0,0.00016849,2]
[351421485,1738564254442,-604.83,0.00016849,2]
[351421486,1738564254451,-421.116898,0.00016849,2]
[351421487,1738564254462,-500.0,0.00016849,2]
[351421488,1738564254473,-500.0,0.00016849,2]
[351421489,1738564254483,-500.0,0.00016849,2]
[351421490,1738564254493,-1016.58,0.00016849,2]
[351421491,1738564254503,-500.0,0.00016849,2]
[351421492,1738564254513,-1883.78,0.00016849,2]
[351421493,1738564254522,-500.0,0.00016849,2]
[351421494,1738564254532,-500.0,0.00016849,2]
[351421495,1738564254542,-421.116898,0.00016849,2]
[351421496,1738564254552,-500.0,0.00016849,2]
[351421497,1738564254562,-500.0,0.00016849,2]
[351421498,1738564254572,-500.0,0.00016849,2]
[351421499,1738564254582,-46.38053849,0.00016849,2]
[351421500,1738564254944,-453.61946151,0.00016849,2]
[351421501,1738564254955,-500.0,0.00016849,2]
[351421502,1738564254964,-134.69273474,0.00016849,2]
[351421503,1738564255318,-27.46737643,0.00016438,2]
[351421504,1738564255331,-472.53262357,0.00016438,2]
[351421505,1738564255341,-500.0,0.00016438,2]
[351421506,1738564255350,-500.0,0.00016575,2]
[351421507,1738564255360,-667.56992681,0.00016712,2]
[351421508,1738564255371,-123.25007319,0.00016712,2]
[351421509,1738564255380,-500.0,0.00016712,2]
[351421510,1738564255393,-99.67981544,0.00016849,2]
[351421511,1738564255410,-477.05744982,0.00016849,2]
[351421512,1738564255419,-509.56,0.00016849,2]
[351421513,1738564255429,-500.0,0.00016849,2]
[351421514,1738564255442,-622.13,0.00016849,2]
[351421515,1738564255452,-408.1525502,0.00016849,2]
[351421516,1738564255686,-500.0,0.00016438,2]
[351421517,1738564255696,-91.8474498,0.00016849,2]
[351421518,1738564255707,-500.0,0.00016849,2]
[351421519,1738564255716,-500.0,0.00016849,2]
[351421520,1738564255726,-500.0,0.00016849,2]
[351421521,1738564255737,-500.0,0.00016849,2]
[351421522,1738564255748,-10219.15,0.00016849,2]
[351421523,1738564255758,-500.0,0.00016849,2]
[351421524,1738564255767,-500.0,0.00016849,2]
[351421525,1738564255777,-500.0,0.00016849,2]
[351421526,1738564255787,-595.04,0.00016849,2]
[351421527,1738564255797,-1511.77,0.00016849,2]
[351421528,1738564255806,-500.0,0.00016849,2]
[351421529,1738564255816,-2561.26,0.00016849,2]
[351421530,1738564255827,-886.24,0.00016849,2]
[351421531,1738564255836,-633.81,0.00016849,2]
[351421532,1738564255846,-500.0,0.00016849,2]
[351421533,1738564255855,-500.0,0.00016849,2]
[351421534,1738564255864,-919.96,0.00016849,2]
[351421535,1738564255874,-812.25,0.00016849,2]
[351421536,1738564255886,-500.0,0.00016849,2]
[351421537,1738564255896,-508.44641942,0.00016849,2]
[351421538,1738564255905,-2342.46,0.00016849,2]
[351421539,1738564255915,-663.71,0.00016849,2]
[351421540,1738564255925,-500.0,0.00016849,2]
[351421541,1738564255935,-4081.6,0.00016849,2]
[351421542,1738564255945,-527.96454884,0.00016849,2]
[351421543,1738564255954,-500.0,0.00016849,2]
[351421544,1738564255964,-500.0,0.00016849,2]
[351421545,1738564255974,-575.72,0.00016849,2]
[351421546,1738564255984,-2783.82,0.00016849,2]
[351421547,1738564255993,-500.0,0.00016849,2]
[351421548,1738564256003,-500.0,0.00016849,2]
[351421549,1738564256012,-500.0,0.00016849,2]
[351421550,1738564256022,-500.0,0.00016849,2]
[351421551,1738564256032,-500.0,0.00016849,2]
[351421552,1738564256041,-326.4586179,0.00016849,2]
[351421553,1738564256054,-173.5413821,0.00016849,2]
[351421554,1738564256063,-1087.55,0.00016849,2]
[351421555,1738564256073,-8463.4334134,0.00016849,2]
[351421556,1738564284487,425.94,0.00010959,2]
[351421557,1738564297994,400.0,0.00013973,2]
[351421558,1738564305242,354.95,0.00010959,2]
[351421559,1738564316013,569.82,0.00010959,2]
[351421560,1738564326531,703.2,0.00010959,2]
[351421561,1738564336918,776.3,0.00010959,2]
[351421562,1738564347446,805.49,0.00010959,2]
[351421563,1738564358310,803.39,0.00010959,2]
[351421564,1738564368794,779.62,0.00010959,2]
[351421565,1738564379609,741.45,0.00010959,2]
[351421566,1738564390303,694.35,0.00010959,2]
[351421567,1738564400809,642.36,0.00010959,2]
[351421568,1738564411327,588.4,0.00010959,2]
[351421569,1738564421840,534.59,0.00010959,2]
[351421570,1738564432404,482.38,0.00010959,2]
[351421571,1738564443077,432.71,0.00010959,2]
[351421572,1738564453558,386.21,0.00010959,2]
[351421573,1738564464335,449.9,0.00010959,2]
[351421574,1738564475260,374.91,0.00010959,2]
[351421576,1738564485601,312.43,0.00010959,2]
[351421577,1738564496098,260.36,0.00010959,2]
[351421578,1738564506588,216.96,0.00010959,2]
[351421579,1738564517065,331.47,0.00010959,2]
[351421580,1738564537968,753.38,0.00010959,2]
[351421585,1738564772276,1000.0,0.00016,16]
[351421586,1738564815705,152.0,0.00014886,5]
[351421588,1738565139577,231.87784,0.00013699,2]
[351421589,1738565156127,-520.42274035,0.00016338,2]
[351421590,1738565248148,-204.60910869,0.000162,2]
[351421591,1738565250190,-151.96848989,0.000162,2]
[351421593,1738565337450,400.0,0.00013973,2]
[351421594,1738565353776,500.0,0.00014164,2]
[351421595,1738565366640,1298.0,0.0001642,13]
[351421597,1738565406180,152.9584,0.00014126,2]
[351421598,1738565406217,771.86214418,0.00014126,2]
[351421599,1738565406486,4201.56679981,0.00014126,2]
[351421628,1738565432209,-488.5155985,0.00015423,2]
[351421630,1738565432219,-12.0794115,0.000162,2]
[351421633,1738565432231,-1084.81050534,0.000162,2]
[351421635,1738565432243,-4260.30248458,0.000162,2]
[351421637,1738565432254,-718.37006673,0.00016338,2]
[351421639,1738565432264,-438.09397887,0.00016338,2]
[351421641,1738565432274,-151.0,0.000164,2]
[351421643,1738565432283,-151.0,0.000164,2]
[351421645,1738565432293,-151.0,0.000164,2]
[351421647,1738565432302,-718.37006671,0.00016407,2]
[351421649,1738565432312,-1431.34959481,0.00016413,10]
[351421651,1738565432321,-300.0,0.00016436,2]
[351421653,1738565432331,-421.91702882,0.00016437,2]
[351421655,1738565432340,-500.0,0.00016437,2]
[351421657,1738565432350,-500.0,0.00016437,2]
[351421659,1738565432359,-500.0,0.00016437,2]
[351421661,1738565432369,-500.0,0.00016437,2]
[351421662,1738565432378,-500.0,0.00016437,2]
[351421663,1738565432390,-500.0,0.00016437,2]
[351421665,1738565432399,-297.25325933,0.00016437,2]
[351421667,1738565432409,-282.83415976,0.00016437,2]
[351421669,1738565432419,-3.41035782,0.00016437,2]
[351421672,1738565432444,-212.85620648,0.00016437,2]
[351421674,1738565432453,-500.0,0.00016437,2]
[351421675,1738565432463,-230.14379352,0.00016437,2]
[351421677,1738565432475,-37.54014136,0.00016437,2]
[351421678,1738565432484,-173.63713766,0.00016437,2]
[351421680,1738565432494,-416.12670979,0.00016437,2]
[351421681,1738565432503,-500.0,0.00016437,2]
[351421682,1738565432512,-227.14214964,0.00016437,2]
[351421683,1738565432522,-500.0,0.00016437,2]
[351421684,1738565432531,-575.01321169,0.00016437,2]
[351421686,1738565432541,-170.54064986,0.00016437,2]
[351421688,1738565432558,-73506.41266045,0.00016437,2]
[351421689,1738565432567,-184.27439982,0.00016438,2]
[351421690,1738565432576,-503.31550951,0.00016438,2]
[351421691,1738565432585,-500.0,0.00016438,2]
[351421692,1738565432595,-498.55568629,0.00016438,2]
[351421693,1738565432604,-185.89226442,0.00016438,2]
[351421694,1738565432613,-508.87841728,0.00016438,2]
[351421695,1738565432623,-500.0,0.00016438,2]
[351421696,1738565432632,-504.14500566,0.00016438,2]
[351421697,1738565432644,-444.74577539,0.00016438,2]
[351421698,1738565432654,-500.0,0.00016438,2]
[351421699,1738565432663,-503.30057774,0.00016438,2]
[351421700,1738565432673,-452.80098528,0.00016438,2]
[351421701,1738565432682,-500.0,0.00016438,2]
[351421702,1738565432691,-500.0,0.00016438,2]
[351421703,1738565432701,-500.0,0.00016438,2]
[351421704,1738565432711,-500.0,0.00016438,2]
[351421705,1738565432721,-616.18609557,0.00016438,2]
[351421706,1738565432730,-164.44333234,0.00016438,2]
[351421707,1738565432740,-272.73437271,0.00016438,2]
[351421708,1738565432750,-512.4581197,0.00016438,2]
[351421709,1738565432759,-504.84964008,0.00016438,2]
[351421710,1738565432769,-254.1690053,0.00016438,2]
[351421711,1738565432779,-500.0,0.00016438,2]
[351421712,1738565432789,-500.0,0.00016438,2]
[351421713,1738565432798,-500.0,0.00016438,2]
[351421714,1738565432808,-500.0,0.00016438,2]
[351421715,1738565432818,-577.19310999,0.00016438,2]
[351421716,1738565432827,-500.0,0.00016438,2]